Workbook

Sheet 徐淮阜门窗采购清单
A1: 徐淮阜门窗采购清单
A2: 序号 | B2: 名称 | C2: 工程量（㎡） | D2: 单价（元） | E2: 合价（元） | F2: 备注（注明：型材、玻璃、门锁品牌）
A4: 1 | B4: 普通铝合金推拉门 1、门窗代号及洞口尺寸：各种尺寸规格 2、门窗材质：90型普通铝材（壁厚2.0mm） 3、玻璃品种、厚度：6透明+12A+6透明 4、具体详见现场、图集、招标文件、招标文件补遗、政府相关文件、规范等其它资料，满足验收及使用要求 | C4: 100.32 | E4: =C4*D4 -> 0.00
A5: 2 | B5: 断热铝合金平开窗 1、窗代号及洞口尺寸：各种尺寸规格 2、窗材质：不低于60型断桥铝材（壁厚：外窗≥1.8mm，内窗≥1.4mm） 3、玻璃品种、厚度：6高透光双银Low-E+20氩气+6透明 4、具体详见现场、图集、招标文件、招标文件补遗、政府相关文件、规范等其它资料，满足验收及使用要求 5、含金刚纱纱窗 6、含消防救援窗（部分包含具体详见图纸） 7、含电动排烟窗（部分包含具体详见图纸） 8、含手动开启装置（部分包含具体详见图纸） | C5: =653.43-C6-60.12 -> 267.31 | E5: 0.00
A6: 3 | B6: 断热铝合金平开窗 1、窗代号及洞口尺寸：各种尺寸规格 2、窗材质：不低于60型断桥铝材（壁厚：外窗≥1.8mm，内窗≥1.4mm） 3、玻璃品种、厚度：6Low-E+12氩气+6透明 4、具体详见现场、图集、招标文件、招标文件补遗、政府相关文件、规范等其它资料，满足验收及使用要求 5、含金刚纱纱窗 6、含消防救援窗（部分包含具体详见图纸） 7、含电动排烟窗（部分包含具体详见图纸） 8、含手动开启装置（部分包含具体详见图纸） | C6: 326.00 | E6: 0.00
A7: 4 | B7: 断热铝合金推拉窗 1、窗代号及洞口尺寸：各种尺寸规格 2、窗材质：不低于105型断桥铝材（壁厚：外窗≥1.8mm，内窗≥1.4mm） 3、玻璃品种、厚度：6高透光双银Low-E+20氩气+6透明 4、具体详见现场、图集、招标文件、招标文件补遗、政府相关文件、规范等其它资料，满足验收及使用要求 5、含金刚纱纱窗 | C7: =60.12/2 -> 30.06 | E7: 0.00
A8: 5 | B8: 断热铝合金推拉窗 1、窗代号及洞口尺寸：各种尺寸规格 2、窗材质：不低于80型断桥铝材（壁厚：外窗≥1.8mm，内窗≥1.4mm） 3、玻璃品种、厚度：6Low-E+12氩气+6透明 4、具体详见现场、图集、招标文件、招标文件补遗、政府相关文件、规范等其它资料，满足验收及使用要求 5、含金刚纱纱窗 | C8: 30.06 | E8: 0.00
A9: 6 | B9: 断热铝合金平开门 1、门窗代号及洞口尺寸：各种尺寸规格 2、门窗材质：不低于60型断桥铝材（壁厚：外门≥2.2mm，内门≥2.0mm） 3、玻璃品种、厚度：6高透光双银Low-E+20氩气+6透明 4、具体详见现场、图集、招标文件、招标文件补遗、政府相关文件、规范等其它资料，满足验收及使用要求 | C9: =53.76-C10 -> 27.76 | E9: 0.00
A10: 7 | B10: 断热铝合金平开门 1、门窗代号及洞口尺寸：各种尺寸规格 2、门窗材质：不低于60型断桥铝材（壁厚：外门≥2.2mm，内门≥2.0mm） 3、玻璃品种、厚度：6中透光Low-E+12氩气+6透明 4、具体详见现场、图集、招标文件、招标文件补遗、政府相关文件、规范等其它资料，满足验收及使用要求 | C10: 26.00 | E10: 0.00
A11: 8 | B11: 断热铝合金平开窗 1、窗代号及洞口尺寸：各种尺寸规格 2、窗材质：不低于60型断桥铝材（壁厚：外窗≥1.8mm，内窗≥1.4mm） 3、玻璃品种、厚度：6高透光双银Low-E+20氩气+6透明 4、具体详见现场、图集、招标文件、招标文件补遗、政府相关文件、规范等其它资料，满足验收及使用要求 5、含金刚纱纱窗 6、含消防救援窗（部分包含具体详见图纸） 7、含电动排烟窗（部分包含具体详见图纸） 8、含手动开启装置（部分包含具体详见图纸） | C11: =494.88-C12 -> 234.88 | E11: 0.00
A12: 9 | B12: 断热铝合金平开窗 1、窗代号及洞口尺寸：各种尺寸规格 2、窗材质：不低于60型断桥铝材（壁厚：外窗≥1.8mm，内窗≥1.4mm） 3、玻璃品种、厚度：6+12A+6遮阳型 4、具体详见现场、图集、招标文件、招标文件补遗、政府相关文件、规范等其它资料，满足验收及使用要求 5、含金刚纱纱窗 6、含消防救援窗（部分包含具体详见图纸） 7、含电动排烟窗（部分包含具体详见图纸） 8、含手动开启装置（部分包含具体详见图纸） | C12: 260.00 | E12: 0.00
A13: 10 | B13: 断热铝合金平开门 1、门窗代号及洞口尺寸：各种尺寸规格 2、门窗材质：不低于60型断桥铝材（壁厚：外门≥2.2mm，内门≥2.0mm） 3、玻璃品种、厚度：6高透光双银Low-E+20氩气+6透明 4、具体详见现场、图集、招标文件、招标文件补遗、政府相关文件、规范等其它资料，满足验收及使用要求 | C13: =146.63-C14 -> 70.63 | E13: 0.00
A14: 11 | B14: 断热铝合金平开门 1、门窗代号及洞口尺寸：各种尺寸规格 2、门窗材质：不低于60型断桥铝材（壁厚：外门≥2.2mm，内门≥2.0mm） 3、玻璃品种、厚度：6中透光Low-E+12空气+6透明 4、具体详见现场、图集、招标文件、招标文件补遗、政府相关文件、规范等其它资料，满足验收及使用要求 | C14: 76.00 | E14: 0.00
A15: 12 | B15: 断热铝合金窗（高透光双银玻璃） 1、窗代号及洞口尺寸：各种尺寸规格 2、窗材质：不低于60型断桥铝材（壁厚：外窗≥1.8mm，内窗≥1.4mm） 3、玻璃品种、厚度：6高透光双银Low-E+20氩气+6透明 4、具体详见现场、图集、招标文件、招标文件补遗、政府相关文件、规范等其它资料，满足验收及使用要求 5、外门窗开启扇设置纱窗扇 6、含消防救援窗（部分包含具体详见图纸） | C15: =86.2-44 -> 42.20 | E15: 0.00
A16: 13 | B16: 断热铝合金窗 1、窗代号及洞口尺寸：各种尺寸规格 2、窗材质：不低于60型断桥铝材（壁厚：外窗≥1.8mm，内窗≥1.4mm） 3、玻璃品种、厚度：6+12A+6遮阳型 4、具体详见现场、图集、招标文件、招标文件补遗、政府相关文件、规范等其它资料，满足验收及使用要求 5、外门窗开启扇设置纱窗扇 6、含消防救援窗（部分包含具体详见图纸） | C16: 44.00 | E16: 0.00
A17: 14 | B17: 断热铝合金窗（高透光双银玻璃） 1、窗代号及洞口尺寸：各种尺寸规格 2、窗材质：90型断桥铝材（壁厚：外窗≥1.8mm，内窗≥1.4mm） 3、玻璃品种、厚度：6高透光双银Low-E+20氩气+6透明 4、具体详见现场、图集、招标文件、招标文件补遗、政府相关文件、规范等其它资料，满足验收及使用要求 4、外门窗开启扇设置纱窗扇 5、含消防救援窗（部分包含具体详见图纸） | C17: =58.56-C18 -> 28.56 | E17: 0.00
A18: 15 | B18: 断热铝合金窗 1、窗代号及洞口尺寸：各种尺寸规格 2、窗材质：80型断桥铝材（壁厚：外窗≥1.8mm，内窗≥1.4mm） 3、玻璃品种、厚度：6+12A+6遮阳型 4、具体详见现场、图集、招标文件、招标文件补遗、政府相关文件、规范等其它资料，满足验收及使用要求 4、外门窗开启扇设置纱窗扇 5、含消防救援窗（部分包含具体详见图纸） | C18: 30.00 | E18: 0.00
A19: 16 | B19: 断热铝合金地弹门 1、窗代号及洞口尺寸：各种尺寸规格 2、窗材质：不低于60型断桥铝材（壁厚2.2mm） 3、玻璃品种、厚度：6高透光双银Low-E+20氩气+6透明 4、具体详见现场、图集、招标文件、招标文件补遗、政府相关文件、规范等其它资料，满足验收及使用要求 | C19: =28.8-C20 -> 13.80 | E19: 0.00
A20: 17 | B20: 断热铝合金地弹门 1、窗代号及洞口尺寸：各种尺寸规格 2、窗材质：不低于60型断桥铝材（壁厚2.2mm） 3、玻璃品种、厚度：6中透光Low-E+12A+6型 4、具体详见现场、图集、招标文件、招标文件补遗、政府相关文件、规范等其它资料，满足验收及使用要求 | C20: 15.00 | E20: 0.00
A21: 18 | B21: 断热铝合金门联窗 1、窗代号及洞口尺寸：各种尺寸规格 2、窗材质：不低于60型断桥铝材（壁厚2.2mm） 3、玻璃品种、厚度：6高透光双银Low-E+20氩气+6透明 4、具体详见现场、图集、招标文件、招标文件补遗、政府相关文件、规范等其它资料，满足验收及使用要求 5、含护门板、横执把手 | C21: =66.24-C22 -> 33.24 | E21: 0.00
A22: 19 | B22: 断热铝合金门联窗 1、窗代号及洞口尺寸：各种尺寸规格 2、窗材质：不低于60型断桥铝材（壁厚2.2mm） 3、玻璃品种、厚度：6高透光双银Low-E+20氩气+6透明 4、具体详见现场、图集、招标文件、招标文件补遗、政府相关文件、规范等其它资料，满足验收及使用要求 5、含护门板、横执把手 | C22: 33.00 | E22: 0.00
A23: 20 | B23: 断热铝合金平开窗 1、窗代号及洞口尺寸：各种尺寸规格 2、窗材质：不低于60型断桥铝材（壁厚：外窗≥1.8mm，内窗≥1.4mm） 3、玻璃品种、厚度：6Low-E+20氩气内置中空百叶+6透明暖边 4、具体详见现场、图集、招标文件、招标文件补遗、政府相关文件、规范等其它资料，满足验收及使用要求 5、含金刚纱纱窗 6、含手动开启装置 | C23: =462.81-C24 -> 232.81 | E23: 0.00
A24: 21 | B24: 断热铝合金平开窗 1、窗代号及洞口尺寸：各种尺寸规格 2、窗材质：不低于60型断桥铝材（壁厚：外窗≥1.8mm，内窗≥1.4mm） 3、玻璃品种、厚度：6高透光Low-E+12空气+6透明 4、具体详见现场、图集、招标文件、招标文件补遗、政府相关文件、规范等其它资料，满足验收及使用要求 5、含金刚纱纱窗 6、含手动开启装置（部分包含具体详见图纸） | C24: 230.00 | E24: 0.00
A25: 22 | B25: 断热铝合金平开窗 1、窗代号及洞口尺寸：各种尺寸规格 2、窗材质：不低于60型断桥铝材（壁厚：外窗≥1.8mm，内窗≥1.4mm） 3、玻璃品种、厚度：6高透双银Low-E+20氩气内置中空百叶+6透明暖边 4、具体详见现场、图集、招标文件、招标文件补遗、政府相关文件、规范等其它资料，满足验收及使用要求 5、含金刚纱纱窗 6、含消防救援窗（部分包含具体详见图纸） 7、含手动开启装置（部分包含具体详见图纸） | C25: =264.6-C26 -> 134.60 | E25: 0.00
A26: 23 | B26: 断热铝合金平开窗 1、窗代号及洞口尺寸：各种尺寸规格 2、窗材质：不低于60型断桥铝材（壁厚：外窗≥1.8mm，内窗≥1.4mm） 3、玻璃品种、厚度：6高透光Low-E+12空气+6透明 4、具体详见现场、图集、招标文件、招标文件补遗、政府相关文件、规范等其它资料，满足验收及使用要求 5、含金刚纱纱窗 6、含消防救援窗（部分包含具体详见图纸） 7、含手动开启装置（部分包含具体详见图纸） | C26: 130.00 | E26: 0.00
A27: 24 | B27: 成品普通铝合金移门 1、窗代号及洞口尺寸：各种尺寸规格 2、门窗材质：90型普通铝材（壁厚2.0mm） 3、玻璃品种、厚度：6透明+12A+6透明 4、具体详见现场、图集、招标文件、招标文件补遗、政府相关文件、规范等其它资料，满足验收及使用要求 | C27: 230.40 | E27: 0.00
A28: 25 | B28: 普通铝合金窗 1、窗代号及洞口尺寸：各种尺寸规格 2、窗材质：90型普通铝材（壁厚：外窗≥1.8mm，内窗≥1.4mm） 3、玻璃品种、厚度：铝合金单层玻璃窗,玻璃为6厚 4、具体详见现场、图集、招标文件、招标文件补遗、政府相关文件、规范等其它资料，满足验收及使用要求 5、含消防救援窗（部分包含具体详见图纸） 6、所有窗户均需外设金刚纱纱窗 | C28: 141.84 | E28: 0.00
A29: 26 | B29: 合计 | E29: =SUM(E4:E28) -> 0.00
A30: 备注：1、消防救援窗、电动排烟窗及手动开启装置投标人需结合图纸综合考虑，不论清单特征中有无此类(含消防救援窗、电动排烟窗及手动开启装置)描述，结算时均不可因此调价。

Sheet 品牌要求
